fUSD/lending_fUSD_20250930
["ID","MTS","AMOUNT","RATE_DAILY","PERIOD"]
[388619436,1759261838065,-714.70020877,0.00016999,5]
[388619437,1759261838146,-285.29979123,0.00016999,5]
[388619439,1759261838156,-1000.0,0.00016999,5]
[388619441,1759261838166,-390.34604609,0.00016999,5]
[388619443,1759261838176,-300.0,0.00016999,2]
[388619444,1759261838186,-300.0,0.00016999,2]
[388619445,1759261838195,-300.0,0.00016999,2]
[388619446,1759261838205,-666.0,0.00016999,2]
[388619447,1759261838215,-1119.96,0.00017017,2]
[388619448,1759261838224,-3220.40931711,0.00017058,2]
[388619449,1759261838236,-145.76068289,0.00017058,2]
[388619450,1759261838246,-566.53,0.0001709,2]
[388619451,1759261838256,-192.74,0.00017143,2]
[388619452,1759261838266,-341.58,0.00017241,2]
[388619453,1759261838275,-746.47,0.00017246,2]
[388619454,1759261838285,-211.57,0.00017286,2]
[388619455,1759261838294,-396.73,0.00017342,2]
[388619456,1759261838304,-1209.99119098,0.0001736,2]
[388619457,1759261838314,-1209.99119098,0.00017366,2]
[388619458,1759261838323,-504.56,0.00017413,2]
[388619459,1759261838333,-578.69467519,0.00017427,2]
[388619460,1759261838343,-1209.99119098,0.00017438,2]
[388619461,1759261838353,-1000.0,0.00017441,2]
[388619462,1759261838362,-1209.99119098,0.00017453,2]
[388619463,1759261838372,-2994.4871074,0.00017454,2]
[388619464,1759261838382,-2048.811663,0.00017454,2]
[388619465,1759261838391,-4473.5634465,0.00017454,2]
[388619480,1759261840409,-331.03499994,0.00017454,2]
[388619482,1759261840420,-396.20531916,0.00017454,2]
[388619483,1759261840430,-796.3358839,0.00017454,2]
[388619484,1759261840439,-291.20823568,0.00017454,2]
[388619485,1759261840531,-42.37629932,0.00017454,2]
[388619486,1759261840540,-835.58147765,0.00017454,2]
[388619490,1759261843076,-608.56444039,0.00017454,2]
[388619491,1759261843088,-2648.48833118,0.00017454,2]
[388619492,1759261843144,-1039.974177,0.00017454,2]
[388619493,1759261843287,-3659.41018044,0.00017454,2]
[388619497,1759261843409,-3639.87779747,0.00017454,2]
[388619499,1759261843420,-2652.20465097,0.00017454,2]
[388619501,1759261843430,-4582.4670185,0.00017454,2]
[388619502,1759261843440,-1209.99119098,0.00017467,2]
[388619503,1759261843450,-91984.34151704,0.00017472,2]
[388619511,1759261846417,-15641.48188908,0.00017472,2]
[388619512,1759261846567,-412.06151292,0.00017472,2]
[388619513,1759261846762,-2233.7,0.00017472,2]
[388619514,1759261846774,-17912.68493371,0.00017472,2]
[388619515,1759261846786,-731.45935099,0.00017472,2]
[388619516,1759261846800,-2073.08790002,0.00017472,2]
[388619517,1759261846814,-714.3750061,0.00017472,2]
[388619518,1759261846826,-2071.11082554,0.00017472,2]
[388619519,1759261846842,-2479.05347954,0.00017472,2]
[388619520,1759261947294,163.24,0.0002607,120]
[388619521,1759262488335,167.45,8.349e-05,2]
[388619522,1759262672204,309.78,0.00016542,2]
[388619523,1759262680031,24909.17,0.00016514,2]
[388619524,1759262736561,17571.23,0.00016502,2]
[388619525,1759262746629,3833.33,0.00016502,2]
[388619526,1759262787392,320.55,0.00016505,2]
[388619527,1759262892716,1500.0,0.00016531,2]
[388619529,1759262910067,200.0,0.00016531,2]
[388619530,1759262917154,158.67,0.00016572,2]
[388619531,1759262917736,158.67,0.00024857,120]
[388619636,1759263033480,-150.0,0.00016631,7]
[388619637,1759263033490,-532.23,0.00016827,2]
[388619639,1759263033500,-1439.54368465,0.00016858,2]
[388619640,1759263033509,-962.03990458,0.0001689,2]
[388619641,1759263033518,-405.0,0.00016988,2]
[388619642,1759263033527,-300.0,0.00016999,2]
[388619643,1759263033536,-355.88396092,0.00016999,2]
[388619644,1759263033545,-876.47294764,0.00017085,2]
[388619645,1759263033555,-332.28,0.00017199,2]
[388619646,1759263033563,-550.0,0.00017204,2]
[388619647,1759263033574,-300.0,0.00017204,2]
[388619648,1759263033583,-123.39781293,0.00017204,2]
[388619649,1759263033594,-176.60218707,0.00017204,2]
[388619650,1759263033604,-300.0,0.00017204,2]
[388619651,1759263033612,-1200.0,0.00017204,2]
[388619652,1759263033622,-250.0,0.00017206,2]
[388619653,1759263033631,-197.4,0.00017211,2]
[388619654,1759263033639,-85.99781293,0.0001726,2]
[388619655,1759263033650,-65.57760507,0.0001726,2]
[388619656,1759263033659,-1000.0,0.00017293,2]
[388619657,1759263033668,-648.39790516,0.000173,2]
[388619658,1759263033706,-1351.60209484,0.000173,2]
[388619659,1759263033715,-309.78,0.0001737,2]
[388619660,1759263033724,-141.72743869,0.00017372,2]
[388619661,1759263033735,-482.33658886,0.00017372,2]
[388619662,1759263033746,-364.05058522,0.00017372,2]
[388619663,1759263033757,-120.96978774,0.00017372,2]
[388619664,1759263033766,-7653.0872,0.00017372,2]
[388619665,1759263033776,-1000.0,0.00017372,2]
[388619666,1759263033785,-163.24,0.0001738,2]
[388619667,1759263033794,-6116.60834414,0.00017384,2]
[388619668,1759263033805,-3605.93313747,0.00017384,2]
[388619669,1759263033815,-834.13305939,0.00017388,2]
[388619670,1759263033824,-9722.54148161,0.000174,2]
[388619671,1759263033833,-9722.54148161,0.00017407,2]
[388619672,1759263033842,-834.13305939,0.00017416,2]
[388619673,1759263033851,-834.13305939,0.0001742,2]
[388619674,1759263033860,-9722.54148161,0.00017432,2]
[388619675,1759263033869,-726.17835334,0.00017445,2]
[388619676,1759263033880,-1563.28726667,0.00017445,2]
[388619677,1759263033891,-1106.89613506,0.00017445,2]
[388619678,1759263033902,-70.89165963,0.00017445,2]
[388619679,1759263033910,-435.68834037,0.00017445,2]
[388619680,1759263033993,-553.65012655,0.00017445,2]
[388619681,1759263034005,-521.39055234,0.00017445,2]
[388619682,1759263034016,-819.72465213,0.00017445,2]
[388619683,1759263034028,-5230.74748811,0.00017445,2]
[388619684,1759263034038,-2016.15809024,0.00017445,2]
[388619685,1759263034049,-2055.81767418,0.00017445,2]
[388619686,1759263034060,-756.64533628,0.00017445,2]
[388619687,1759263034069,-7057.3805752,0.00017445,2]
[388619688,1759263034078,-7274.63454881,0.00017445,2]
[388619689,1759263034129,-350.0,0.00017204,2]
[388619690,1759263034139,-592.14617011,0.00017445,2]
[388619691,1759263034151,-907.126961,0.00017445,2]
[388619692,1759263034161,-840.82494719,0.00017445,2]
[388619693,1759263034174,-2642.47542019,0.00017445,2]
[388619694,1759263034183,-160.53279936,0.00017445,2]
[388619695,1759263034260,-1432.13896864,0.00017445,2]
[388619696,1759263034269,-500.0,0.00017455,2]
[388619697,1759263034278,-834.13305939,0.00017461,2]
[388619698,1759263034287,-200.0,0.00017462,2]
[388619699,1759263034296,-7680.05844002,0.00017468,2]
[388619700,1759263034307,-2042.48304159,0.00017468,2]
[388619701,1759263034315,-185.63420873,0.00017471,2]
[388619702,1759263034326,-233.26436639,0.00017471,2]
[388619703,1759263034335,-500.0,0.00017471,2]
[388619704,1759263034344,-494.39293063,0.00017471,2]
[388619705,1759263034353,-15663.92162497,0.00017472,2]
[388619706,1759263034365,-1000.13225756,0.00017472,2]
[388619707,1759263034375,-7042.36242039,0.00017472,2]
[388619740,1759263039224,-286.33144064,0.00017472,2]
[388619741,1759263039332,-1374.20020265,0.00017205,2]
[388619742,1759263039343,-196.97979735,0.00017205,2]
[388619743,1759263039352,-11864.79436694,0.00017472,2]
[388619744,1759263039364,-75689.22187386,0.00017472,2]
[388619745,1759263039376,-197.63994475,0.00017472,2]
[388619746,1759263039385,-759.94976443,0.00017472,2]
[388619747,1759263039394,-151.0,0.00017472,2]
[388619748,1759263039403,-3719.96283,0.00017472,2]
[388619749,1759263039413,-834.13305939,0.00017499,2]
[388619750,1759263039423,-3719.96284,0.0001771,2]
[388619751,1759263039433,-500.0,0.00017873,2]
[388619752,1759263039443,-500.0,0.00017873,2]
[388619753,1759263039453,-300.0,0.00017889,2]
[388619754,1759263039462,-56661.58031078,0.0001789,2]
[388619755,1759263039610,-23594.01900902,0.0001789,2]
[388619756,1759263039621,-1089.15485117,0.0001789,2]
[388619764,1759263042253,-730.39412303,0.00017006,2]
[388619765,1759263042263,-162.66505393,0.00017479,2]
[388619766,1759263042274,-1408.51494607,0.00017479,2]
[388619767,1759263042284,-1017.48505393,0.00017753,2]
[388619768,1759263042295,-553.69494607,0.00017753,2]
[388619769,1759263042305,-271.82042375,0.0001789,2]
[388619770,1759263042316,-522.37229982,0.0001789,2]
[388619771,1759263042327,-1146.6,0.0001789,2]
[388619773,1759263042854,-921.6101703,0.0001789,2]
[388619780,1759263044883,-1062.5,0.00017205,2]
[388619781,1759263044895,-10675.89441742,0.0001789,2]
[388619782,1759263044905,-5591.56015832,0.000179,2]
[388619783,1759263044915,-2000.0,0.00018,2]
[388619784,1759263044924,-2000.0,0.00018,2]
[388619785,1759263044934,-2000.0,0.00018,2]
[388619786,1759263044944,-2000.0,0.00018,2]
[388619787,1759263044953,-760.82,0.00018,2]
[388619788,1759263044962,-295.27245785,0.00018,2]
[388619789,1759263044971,-1571.18,0.00018027,2]
[388619790,1759263044981,-176.11,0.00018115,2]
[388619791,1759263044990,-1109.08440049,0.00018131,2]
[388619792,1759263045000,-309.78,0.00018197,2]
[388619793,1759263045354,-144442.01909238,0.0001821,2]
[388619794,1759263045376,-3719.96284,0.0001821,2]
[388619795,1759263045385,-226.58,0.00018227,2]
[388619796,1759263045395,-322.6107,0.00018256,2]
[388619797,1759263045405,-601.3376128,0.00018256,2]
[388619798,1759263045414,-151.0,0.00018256,2]
[388619799,1759263045423,-160.0,0.00018256,2]
[388619800,1759263045432,-7965.41053268,0.00018256,2]
[388619801,1759263045441,-258.16370067,0.00018256,2]
[388619802,1759263045450,-1000.0,0.00018256,2]
[388619803,1759263045459,-1000.0,0.00018256,2]
[388619804,1759263045467,-231.28369723,0.00018256,2]
[388619805,1759263045476,-578.20924308,0.00018256,2]
[388619806,1759263045486,-250.22274337,0.00018294,2]
[388619807,1759263045495,-195.0,0.00018294,2]
[388619808,1759263045505,-163.96563501,0.000183,2]
[388619809,1759263045514,-1571.18,0.00018301,2]
[388619810,1759263045523,-8260.13072239,0.00018311,2]
[388619811,1759263045533,-5029.02464443,0.00018366,2]
[388619812,1759263045542,-151.32,0.00018374,2]
[388619813,1759263045551,-99762.7274,0.000184,2]
[388619814,1759263045560,-5000.0,0.000184,2]
[388619815,1759263045569,-1000.0,0.00018421,2]
[388619816,1759263045578,-595.30953576,0.00018421,2]
[388619817,1759263045587,-474.52590314,0.00018422,2]
[388619818,1759263045596,-500.0,0.00018473,2]
[388619819,1759263045606,-165.21137758,0.00018473,2]
[388619820,1759263045615,-500.0,0.00018473,2]
[388619821,1759263045624,-159.983392,0.00018473,2]
[388619822,1759263045633,-500.0,0.00018473,2]
[388619823,1759263045643,-159.983392,0.00018473,2]
[388619824,1759263045653,-500.0,0.00018473,2]
[388619825,1759263045662,-500.0,0.00018473,2]
[388619826,1759263045672,-160.9832882,0.00018473,2]
[388619827,1759263045680,-500.0,0.00018473,2]
[388619828,1759263045689,-500.0,0.00018473,2]
[388619829,1759263045698,-500.0,0.00018473,2]
[388619830,1759263045707,-151.0,0.00018497,2]
[388619831,1759263045716,-300.0,0.00018499,2]
[388619832,1759263045725,-308182.29443968,0.000185,2]
[388619833,1759263045734,-2500.0,0.00018509,2]
[388619834,1759263045743,-2000.0,0.00018509,2]
[388619835,1759263045752,-1944.56708195,0.00018509,2]
[388619836,1759263045761,-195.0,0.00018509,2]
[388619837,1759263045770,-150.57187654,0.00018509,4]
[388619838,1759263045779,-300.41487226,0.00018509,2]
[388619839,1759263045788,-150.0,0.00018509,2]
[388619840,1759263045798,-500.0,0.00018509,2]
[388619841,1759263045807,-331.20993938,0.00018509,2]
[388619842,1759263045816,-1571.18,0.00018575,2]
[388619843,1759263045824,-5591.56015827,0.000186,2]
[388619844,1759263045834,-292.64,0.0001863,2]
[388619845,1759263045843,-769.91,0.0001863,2]
[388619846,1759263045853,-3719.96284,0.0001871,2]
[388619847,1759263045862,-300.0,0.00018787,2]
[388619848,1759263045871,-1000.0,0.000188,2]
[388619849,1759263045881,-1000.0,0.000188,2]
[388619850,1759263045890,-1000.0,0.000188,2]
[388619851,1759263045899,-1000.0,0.000188,2]
[388619852,1759263045908,-151.0,0.00018804,2]
[388619853,1759263045917,-1571.18,0.00018849,2]
[388619854,1759263045926,-1680.0,0.0001888,2]
[388619855,1759263045936,-167.35,0.00018883,2]
[388619856,1759263045945,-1109.08440049,0.00018889,2]
[388619857,1759263045954,-1500.0,0.00018968,2]
[388619858,1759263045964,-1800.0,0.00019,3]
[388619859,1759263045974,-1000.0,0.00019021,2]
[388619861,1759263045983,-750.14216786,0.00019021,2]
[388619862,1759263045992,-1000.0,0.00019021,2]
[388619863,1759263046001,-1000.0,0.00019021,2]
[388619864,1759263046011,-301.22856971,0.00019021,2]
[388619865,1759263046019,-1000.0,0.00019021,2]
[388619866,1759263046029,-309.78,0.00019024,2]
[388619867,1759263046038,-1571.18,0.00019123,2]
[388619868,1759263046048,-151.0,0.00019178,2]
[388619869,1759263046057,-3719.96284,0.0001921,2]
[388619870,1759263046066,-151.575418,0.00019232,2]
[388619871,1759263046076,-15084.1010551,0.00019267,2]
[388619872,1759263046085,-5591.56015827,0.000193,2]
[388619873,1759263046094,-619.81577478,0.000193,2]
[388619874,1759263046107,-158.67,0.00019333,2]
[388619875,1759263046116,-589.54780581,0.00019373,2]
[388619876,1759263046125,-500.21815192,0.00019373,2]
[388619877,1759263046134,-500.0,0.00019373,2]
[388619878,1759263046144,-500.0,0.00019373,2]
[388619879,1759263046153,-500.0,0.00019373,2]
[388619880,1759263046163,-501.68645245,0.00019373,2]
[388619881,1759263046172,-500.0,0.00019373,2]
[388619882,1759263046183,-168.69331718,0.00019373,2]
[388619883,1759263046192,-159.983392,0.00019373,2]
[388619884,1759263046201,-151.9842224,0.00019373,2]
[388619885,1759263046210,-159.983392,0.00019373,2]
[388619886,1759263046220,-500.0,0.00019373,2]
[388619887,1759263046229,-547.20922059,0.00019373,2]
[388619888,1759263046238,-159.983392,0.00019373,2]
[388619889,1759263046247,-159.983392,0.00019373,2]
[388619890,1759263046256,-500.0,0.00019373,2]
[388619891,1759263046265,-150.7,0.0001939,2]
[388619892,1759263046274,-150.7,0.0001939,2]
[388619893,1759263046283,-150.7,0.0001939,2]
[388619894,1759263046293,-150.7,0.0001939,2]
[388619895,1759263046302,-150.7,0.0001939,2]
[388619896,1759263046311,-150.7,0.0001939,2]
[388619897,1759263046320,-1571.18,0.00019397,2]
[388619898,1759263046330,-1000.0,0.00019399,2]
[388619899,1759263046339,-300.0,0.00019399,2]
[388619900,1759263046348,-10020.51077917,0.00019399,2]
[388619901,1759263046357,-1000.0,0.00019399,2]
[388619902,1759263046366,-150.0,0.00019399,2]
[388619903,1759263046376,-2277.0,0.000194,2]
[388619904,1759263046386,-2971.1818969,0.000194,4]
[388619905,1759263046427,-813.8268,0.000194,4]
[388619909,1759263046562,-5247.01959448,0.000194,4]
[388619910,1759263046607,-804.93567262,0.000194,4]
[388619911,1759263046618,-14230.00000001,0.000194,4]
[388619912,1759263046718,-1085.9496155,0.000194,4]
[388619913,1759263048596,-1062.5,0.00017479,2]
[388619914,1759263048608,-1062.5,0.00017753,2]
[388619915,1759263048619,-1062.5,0.00018027,2]
[388619916,1759263048629,-1062.5,0.00018301,2]
[388619917,1759263048638,-1062.5,0.00018575,2]
[388619918,1759263048649,-1062.5,0.00018849,2]
[388619919,1759263048658,-1062.5,0.00019123,2]
[388619920,1759263048668,-9481.53349485,0.000194,4]
[388619921,1759263048679,-40243.53433532,0.000194,4]
[388619922,1759263048714,-537.42239995,0.000194,4]
[388619924,1759263366629,266.11,0.0001659,2]
[388619925,1759263542741,300.0,0.00016602,2]
[388619926,1759263909740,514.1,0.00030137,120]
[388619927,1759263919049,170.45,0.00025234,120]
[388619928,1759263942514,646.64,0.00016442,2]
[388619929,1759264094354,1000.0,0.00016438,2]
[388619930,1759264102973,1069.13,0.00016151,2]
[388619934,1759264118084,400.93153701,0.00010136,2]
[388619935,1759264126124,250.0,0.00016133,2]
[388619988,1759264234148,-207.66601027,0.0001679,2]
[388619989,1759264234157,-170.45,0.00016822,2]
[388619990,1759264234168,-1798.9093,0.0001689,2]
[388619991,1759264234177,-277.9406,0.0001689,2]
[388619992,1759264234185,-427.3815,0.0001689,2]
[388619993,1759264234195,-232.8006,0.0001689,2]
[388619994,1759264234204,-4136.1249508,0.00016901,2]
[388619995,1759264234213,-704.21355713,0.00016901,2]
[388619996,1759264234224,-165.76107626,0.00016901,2]
[388619997,1759264234233,-164.31942073,0.00016901,2]
[388619998,1759264234244,-300.0,0.00016913,2]
[388619999,1759264234254,-300.0,0.00016944,2]
[388620000,1759264234264,-500.0,0.00016967,2]
[388620001,1759264234273,-500.0,0.00016967,2]
[388620002,1759264234282,-500.0,0.00016967,2]
[388620003,1759264234291,-500.0,0.00016967,2]
[388620004,1759264234302,-500.0,0.00016967,2]
[388620005,1759264234313,-500.0,0.00016967,2]
[388620006,1759264234323,-500.0,0.00016967,2]
[388620007,1759264234332,-500.0,0.00016967,2]
[388620008,1759264234342,-500.0,0.00016967,2]
[388620009,1759264234352,-500.0,0.00016967,2]
[388620010,1759264234361,-500.0,0.00016967,2]
[388620011,1759264234370,-500.0,0.00016967,2]
[388620012,1759264234380,-500.0,0.00016967,2]
[388620013,1759264234389,-500.0,0.00016967,2]
[388620014,1759264234399,-500.0,0.00016967,2]
[388620015,1759264234408,-500.0,0.00016967,2]
[388620016,1759264234417,-500.0,0.00016967,2]
[388620017,1759264234426,-500.0,0.00016967,2]
[388620018,1759264234435,-500.0,0.00016967,2]
[388620019,1759264234444,-500.0,0.00016967,2]
[388620020,1759264234454,-500.0,0.00016967,2]
[388620021,1759264234463,-500.0,0.00016967,2]
[388620022,1759264234472,-500.0,0.00016967,2]
[388620023,1759264234482,-500.0,0.00016967,2]
[388620024,1759264234492,-500.0,0.00016967,2]
[388620025,1759264234502,-500.0,0.00016967,2]
[388620026,1759264234511,-500.0,0.00016967,2]
[388620027,1759264234521,-500.0,0.00016967,2]
[388620028,1759264234530,-500.0,0.00016967,2]
[388620029,1759264234539,-500.0,0.00016967,2]
[388620030,1759264234549,-500.0,0.00016967,2]
[388620031,1759264234558,-500.0,0.00016967,2]
[388620032,1759264234567,-500.0,0.00016967,2]
[388620033,1759264234576,-500.0,0.00016967,2]
[388620034,1759264234585,-500.0,0.00016967,2]
[388620035,1759264234595,-500.0,0.00016967,2]
[388620036,1759264234604,-500.0,0.00016967,2]
[388620037,1759264234614,-500.0,0.00016967,2]
[388620038,1759264234623,-500.0,0.00016967,2]
[388620039,1759264234633,-500.0,0.00016967,2]
[388620040,1759264234642,-500.0,0.00016967,2]
[388620041,1759264234651,-530.23712235,0.00016967,2]
[388620042,1759264234660,-500.0,0.00016967,2]
[388620043,1759264234669,-500.0,0.00016967,2]
[388620044,1759264234679,-500.0,0.00016967,2]
[388620045,1759264234690,-500.0,0.00016967,2]
[388620046,1759264234700,-500.0,0.00016967,2]
[388620047,1759264234709,-350.0,0.00016967,2]
[388620048,1759264234719,-500.0,0.00016967,2]
[388620049,1759264234732,-500.0,0.00016967,2]
[388620050,1759264234743,-500.0,0.00016967,2]
[388620051,1759264234752,-500.0,0.00016967,2]
[388620052,1759264234763,-500.0,0.00016967,2]
[388620053,1759264234773,-500.0,0.00016967,2]
[388620054,1759264234783,-500.0,0.00016967,2]
[388620055,1759264234795,-500.0,0.00016967,2]
[388620056,1759264234807,-500.0,0.00016967,2]
[388620057,1759264234817,-500.0,0.00016967,2]
[388620058,1759264234826,-500.0,0.00016967,2]
[388620059,1759264234836,-500.0,0.00016967,2]
[388620060,1759264234845,-500.0,0.00016967,2]
[388620061,1759264234854,-500.0,0.00016967,2]
[388620062,1759264234865,-500.0,0.00016967,2]
[388620063,1759264234875,-500.0,0.00016967,2]
[388620064,1759264234884,-500.0,0.00016967,2]
[388620065,1759264234893,-500.0,0.00016973,2]
[388620066,1759264234903,-500.0,0.00016973,2]
[388620067,1759264234912,-916.53,0.00016986,2]
[388620068,1759264234922,-500.0,0.00016986,2]
[388620069,1759264234931,-150.0,0.00016986,2]
[388620070,1759264234941,-150.0,0.00016986,2]
[388620071,1759264234950,-150.0,0.00016986,2]
[388620072,1759264234960,-150.0,0.00016986,2]
[388620073,1759264234970,-252.20298808,0.00016986,2]
[388620074,1759264234981,-500.0,0.00016987,2]
[388620075,1759264234991,-150.0,0.00016987,2]
[388620076,1759264235001,-150.0,0.00016987,2]
[388620077,1759264235010,-150.0,0.00016987,2]
[388620078,1759264235020,-150.0,0.00016987,2]
[388620079,1759264235029,-150.0,0.00016987,2]
[388620080,1759264235038,-500.0,0.00016987,2]
[388620081,1759264235047,-150.0,0.00016987,2]
[388620082,1759264235056,-445.0,0.00016987,2]
[388620083,1759264235065,-500.0,0.00016987,2]
[388620084,1759264235074,-500.0,0.00016988,2]
[388620085,1759264235083,-500.0,0.00016988,2]
[388620086,1759264235092,-500.0,0.00016988,2]
[388620087,1759264235102,-500.0,0.00016988,2]
[388620088,1759264235112,-2097.0,0.00016988,2]
[388620089,1759264235121,-151.83344632,0.00016988,2]
[388620090,1759264235130,-150.0,0.00016988,2]
[388620091,1759264235139,-150.0,0.00016988,2]
[388620092,1759264235148,-500.0,0.00016988,2]
[388620093,1759264235159,-150.0,0.00016988,2]
[388620094,1759264235168,-150.0,0.00016988,2]
[388620095,1759264235177,-150.0,0.00016988,2]
[388620096,1759264235187,-150.0,0.00016988,2]
[388620097,1759264235196,-162.32942678,0.00016989,2]
[388620098,1759264235205,-590.89955893,0.0001699,2]
[388620099,1759264235215,-255.953151,0.00016997,2]
[388620100,1759264235224,-163.28505648,0.00016999,2]
[388620101,1759264235233,-500.0,0.00016999,2]
[388620102,1759264235242,-196.07505144,0.00016999,2]
[388620103,1759264235252,-118315.33113727,0.00017,2]
[388620104,1759264235264,-750.81041459,0.00017,2]
[388620105,1759264235366,-538.0,0.00017,2]
[388620106,1759264235401,-28589.07274024,0.00017,2]
[388620107,1759264235412,-34541.05267456,0.00017,2]
[388620108,1759264235424,-23359.25661444,0.00017,2]
[388620157,1759264239892,-150.0,0.00016986,2]
[388620158,1759264239902,-150.0,0.00016986,2]
[388620159,1759264239911,-1700.0,0.00017,2]
[388620160,1759264239922,-95521.0095462,0.00017,2]
[388620161,1759264239932,-149404.16284541,0.00017,2]
[388620162,1759264242450,-1115.90003394,0.00017,2]
[388620163,1759264242504,-17469.85165608,0.00017,2]
[388620164,1759264242580,-19999.84932,0.00017,2]
[388620165,1759264242591,-327.0836,0.00017,2]
[388620166,1759264242602,-665.23,0.00017,2]
[388620167,1759264242661,-940.0997,0.00017,2]
[388620168,1759264242673,-174385.95470152,0.00017,2]
[388620169,1759264242686,-2556.71465447,0.00017,2]
[388620243,1759264247519,-299.33939208,0.00016966,2]
[388620244,1759264247529,-231.18220795,0.00016966,2]
[388620245,1759264247550,-268.81779205,0.00016966,2]
[388620246,1759264247559,-284.18186502,0.00016966,2]
[388620247,1759264247568,-500.0,0.00016966,2]
[388620248,1759264247578,-275.07189198,0.00016966,2]
[388620249,1759264247588,-500.0,0.00016966,2]
[388620250,1759264247597,-500.0,0.00016966,2]
[388620251,1759264247606,-500.0,0.00016966,2]
[388620252,1759264247615,-292.00116366,0.00016966,2]
[388620253,1759264247624,-500.0,0.00016966,2]
[388620254,1759264247633,-500.0,0.00016966,2]
[388620255,1759264247643,-500.0,0.00016966,2]
[388620256,1759264247652,-521.85998448,0.00016966,2]
[388620257,1759264247662,-500.0,0.00016966,2]
[388620258,1759264247671,-500.0,0.00016966,2]
[388620259,1759264247680,-500.0,0.00016966,2]
[388620260,1759264247689,-150.0,0.00016986,2]
[388620261,1759264247698,-78525.31055428,0.00017,2]
[388620262,1759264292879,500.0,0.00030136,120]
[388620265,1759264406876,167.27,8.115e-05,2]
[388620266,1759264407014,167.27,0.00010144,2]
[388620267,1759264407276,167.27,0.00012172,2]
[388620268,1759264407550,167.27,0.00014201,2]
[388620269,1759264408177,167.27,0.0001623,2]
[388620270,1759264408514,255.33,0.00015489,2]
[388620271,1759264500420,1106.07,0.00016256,2]
[388620272,1759264526871,341.58,0.00016178,2]
[388620273,1759264549979,458.16,0.00016185,2]
[388620274,1759264647674,225.93690383,0.0001656,2]
[388620275,1759264686297,2908.64,0.00016194,2]
[388620276,1759264717085,234.22,0.00016153,2]
[388620277,1759264780670,150.0,0.00016051,2]
[388620278,1759264817862,1852.42,0.00016078,2]
[388620279,1759264862970,22072.57,0.00016104,2]
[388620280,1759264863831,873.86,0.00016194,2]
[388620281,1759264866637,300.0,0.00016103,2]
[388620282,1759264869678,250.0,0.00016149,2]
[388620283,1759264966337,504.56,0.00016194,2]
[388620284,1759264979883,3004.39,0.00016166,2]
[388620285,1759265068782,250.0,0.00016152,2]
[388620286,1759265080643,10000.0,0.000166,2]
[388620287,1759265083693,500.0,0.00030137,120]
[388620289,1759265123124,746.47,0.00016186,2]
[388620290,1759265140108,170.06,0.00016056,2]
[388620291,1759265150692,1500.0,0.00016052,2]
[388620292,1759265162031,651.19,0.00016052,2]
[388620293,1759265251512,1900.82,0.00016057,2]
[388620294,1759265328691,1678.09,0.00016079,2]
[388620295,1759265332334,666.0,0.00016079,3]
[388620453,1759265432735,-150.67581666,0.0001666,2]
[388620454,1759265432745,-195.0,0.00016661,2]
[388620455,1759265432754,-300.0,0.00016661,2]
[388620456,1759265432763,-2000.0,0.00016664,2]
[388620457,1759265432772,-195.0,0.00016666,2]
[388620458,1759265432781,-300.0,0.00016666,2]
[388620459,1759265432790,-372.42,0.00016666,2]
[388620460,1759265432799,-224.0,0.0001667,2]
[388620461,1759265432808,-300.0,0.0001667,2]